fUSD/lending_fUSD_20250304
["ID","MTS","AMOUNT","RATE_DAILY","PERIOD"]
[355304272,1741061436755,-508.36446761,0.00012697,2]
[355304274,1741061436764,-1548.01,0.00012697,2]
[355304276,1741061436773,-661.26,0.00012697,2]
[355304278,1741061436783,-500.0,0.00012697,2]
[355304280,1741061436792,-509.81664229,0.00012697,2]
[355304282,1741061436801,-794.12,0.00012697,2]
[355304284,1741061436811,-494.74086639,0.00012697,2]
[355304286,1741061436820,-500.0,0.00012697,2]
[355304288,1741061436830,-500.0,0.00012697,2]
[355304290,1741061436839,-500.0,0.00012697,2]
[355304291,1741061436849,-785.01,0.00012697,2]
[355304293,1741061436859,-508.27230858,0.00012697,2]
[355304295,1741061436868,-500.0,0.00012697,2]
[355304297,1741061436878,-813.05,0.00012697,2]
[355304299,1741061436887,-506.90613154,0.00012697,2]
[355304301,1741061436899,-500.0,0.00012697,2]
[355304302,1741061436909,-513.38737889,0.00012697,2]
[355304303,1741061436920,-1053.71,0.00012697,2]
[355304304,1741061436929,-500.0,0.00012697,2]
[355304305,1741061436939,-617.37,0.00012697,2]
[355304306,1741061436949,-500.0,0.00012697,2]
[355304307,1741061436958,-511.69091596,0.00012697,2]
[355304308,1741061436968,-510.75581961,0.00012697,2]
[355304309,1741061436978,-500.0,0.00012697,2]
[355304310,1741061436987,-509.38010794,0.00012697,2]
[355304311,1741061436998,-382.68745777,0.00012697,2]
[355304312,1741061437008,-508.42087297,0.00012697,2]
[355304313,1741061437018,-500.0,0.00012697,2]
[355304314,1741061437028,-500.0,0.00012697,2]
[355304315,1741061437038,-500.0,0.00012697,2]
[355304316,1741061437048,-1392.39,0.00012697,2]
[355304317,1741061437058,-500.0,0.00012697,2]
[355304318,1741061437067,-504.79698261,0.00012697,2]
[355304319,1741061437077,-504.40727126,0.00012697,2]
[355304320,1741061437087,-957.11,0.00012697,2]
[355304321,1741061437097,-516.40330202,0.00012697,2]
[355304322,1741061437107,-508.75559373,0.00012697,2]
[355304323,1741061437118,-1337.67,0.00012697,2]
[355304324,1741061437127,-508.84746725,0.00012697,2]
[355304325,1741061437138,-687.65,0.00012697,2]
[355304326,1741061437147,-508.55767847,0.00012697,2]
[355304327,1741061437157,-507.71642044,0.00012697,2]
[355304328,1741061437166,-513.53292922,0.00012697,2]
[355304330,1741061437176,-2557.97062743,0.00012697,2]
[355304332,1741061437186,-500.0,0.00012697,2]
[355304333,1741061437195,-500.0,0.00012697,2]
[355304335,1741061437205,-506.56312033,0.00012697,2]
[355304337,1741061437214,-1303.03,0.00012697,2]
[355304339,1741061437223,-655.78,0.00012697,2]
[355304341,1741061437233,-500.0,0.00012697,2]
[355304343,1741061437243,-500.0,0.00012697,2]
[355304345,1741061437252,-1625.49,0.00012697,2]
[355304347,1741061437261,-500.0,0.00012697,2]
[355304349,1741061437271,-500.0,0.00012697,2]
[355304351,1741061437280,-505.00044291,0.00012697,2]
[355304353,1741061437290,-568.25,0.00012697,2]
[355304355,1741061437300,-510.98186263,0.00012697,2]
[355304356,1741061437309,-500.0,0.00012697,2]
[355304358,1741061437319,-841.01,0.00012697,2]
[355304360,1741061437328,-1014.43,0.00012697,2]
[355304362,1741061437338,-510.03695109,0.00012697,2]
[355304364,1741061437347,-509.3436647,0.00012697,2]
[355304366,1741061437357,-508.05671123,0.00012697,2]
[355304368,1741061437366,-504.29579742,0.00012697,2]
[355304370,1741061437375,-610.66661109,0.00012697,2]
[355304372,1741061437385,-503.40832664,0.00012697,2]
[355304374,1741061437399,-500.0,0.00012697,2]
[355304376,1741061437409,-1227.02,0.00012697,2]
[355304378,1741061437419,-512.2733632,0.00012697,2]
[355304380,1741061437430,-162.86643141,0.00012697,2]
[355304382,1741061437440,-500.0,0.00012697,2]
[355304384,1741061437449,-1626.27,0.00012697,2]
[355304386,1741061437458,-505.54841192,0.00012697,2]
[355304388,1741061437468,-500.0,0.00012697,2]
[355304390,1741061437477,-1302.96,0.00012697,2]
[355304392,1741061437486,-507.20413512,0.00012697,2]
[355304393,1741061437494,-500.0,0.00012697,2]
[355304395,1741061437503,-512.48672382,0.00012697,2]
[355304397,1741061437511,-500.0,0.00012697,2]
[355304399,1741061437518,-500.0,0.00012697,2]
[355304401,1741061437526,-507.35214212,0.00012697,2]
[355304403,1741061437536,-509.89309224,0.00012697,2]
[355304405,1741061437546,-773.87,0.00012697,2]
[355304407,1741061437555,-507.44318666,0.00012697,2]
[355304409,1741061437565,-510.33285533,0.00012697,2]
[355304411,1741061437574,-514.09189841,0.00012697,2]
[355304413,1741061437584,-630.7,0.00012697,2]
[355304415,1741061437594,-702.72,0.00012697,2]
[355304417,1741061437604,-968.82,0.00012697,2]
[355304419,1741061437615,-500.0,0.00012697,2]
[355304421,1741061437625,-504.95345446,0.00012697,2]
[355304423,1741061437635,-511.78268253,0.00012697,2]
[355304425,1741061437646,-505.63336793,0.00012697,2]
[355304427,1741061437656,-500.0,0.00012697,2]
[355304429,1741061437666,-508.39335422,0.00012697,2]
[355304431,1741061437676,-500.0,0.00012697,2]
[355304432,1741061437685,-500.0,0.00012697,2]
[355304434,1741061437697,-511.21397052,0.00012697,2]
[355304436,1741061437706,-500.0,0.00012697,2]
[355304438,1741061437716,-500.0,0.00012697,2]
[355304440,1741061437725,-622.91,0.00012697,2]
[355304442,1741061437736,-505.4200879,0.00012697,2]
[355304444,1741061437745,-505.88255159,0.00012697,2]
[355304446,1741061437755,-513.66618021,0.00012697,2]
[355304448,1741061437764,-500.0,0.00012697,2]
[355304450,1741061437774,-517.76959127,0.00012697,2]
[355304452,1741061437783,-500.0,0.00012697,2]
[355304454,1741061437792,-1383.45,0.00012697,2]
[355304456,1741061437802,-1608.42,0.00012697,2]
[355304458,1741061437811,-500.0,0.00012697,2]
[355304460,1741061437820,-1560.77,0.00012697,2]
[355304462,1741061437830,-534.6143567,0.00012697,2]
[355304464,1741061437839,-500.0,0.00012697,2]
[355304466,1741061437849,-500.0,0.00012697,2]
[355304468,1741061437858,-506.15984223,0.00012697,2]
[355304470,1741061437868,-507.01879999,0.00012697,2]
[355304472,1741061437878,-505.61245229,0.00012697,2]
[355304473,1741061437888,-1527.37,0.00012697,2]
[355304476,1741061437898,-512.88835489,0.00012697,2]
[355304478,1741061437908,-727.24,0.00012697,2]
[355304479,1741061437917,-510.39874183,0.00012697,2]
[355304481,1741061437927,-508.08712445,0.00012697,2]
[355304483,1741061437937,-500.0,0.00012697,2]
[355304485,1741061437948,-507.01207551,0.00012697,2]
[355304487,1741061437958,-553.19,0.00012697,2]
[355304489,1741061437968,-987.84,0.00012697,2]
[355304491,1741061437978,-500.0,0.00012697,2]
[355304493,1741061437988,-505.43965673,0.00012697,2]
[355304495,1741061437998,-504.49866225,0.00012697,2]
[355304497,1741061438008,-3052.9,0.00012697,2]
[355304499,1741061438018,-4620.22,0.00012697,2]
[355304501,1741061438028,-749.6,0.00012697,2]
[355304503,1741061438038,-511.93189952,0.00012697,2]
[355304505,1741061438048,-1701.16,0.00012697,2]
[355304507,1741061438057,-629.82380396,0.00012697,2]
[355304509,1741061438067,-505.4336167,0.00012697,2]
[355304511,1741061438078,-506.85084724,0.00012697,2]
[355304513,1741061438088,-508.1943024,0.00012697,2]
[355304515,1741061438097,-500.0,0.00012697,2]
[355304517,1741061438108,-1839.07,0.00012697,2]
[355304520,1741061438117,-507.91805559,0.00012697,2]
[355304523,1741061438127,-506.22419346,0.00012697,2]
[355304525,1741061438136,-500.0,0.00012697,2]
[355304527,1741061438146,-513.04218676,0.00012697,2]
[355304529,1741061438156,-838.88,0.00012697,2]
[355304531,1741061438165,-512.99596896,0.00012697,2]
[355304533,1741061438175,-500.0,0.00012697,2]
[355304534,1741061438184,-500.0,0.00012697,2]
[355304536,1741061438194,-507.54739159,0.00012697,2]
[355304538,1741061438204,-500.0,0.00012697,2]
[355304540,1741061438214,-511.11191548,0.00012697,2]
[355304542,1741061438224,-5573.64,0.00012697,2]
[355304544,1741061438234,-500.0,0.00012697,2]
[355304546,1741061438244,-500.0,0.00012697,2]
[355304548,1741061438253,-508.49431978,0.00012697,2]
[355304550,1741061438263,-516.78374994,0.00012697,2]
[355304552,1741061438272,-505.64763908,0.00012697,2]
[355304554,1741061438282,-512.03750248,0.00012697,2]
[355304556,1741061438292,-647.38,0.00012697,2]
[355304558,1741061438302,-1120.73,0.00012697,2]
[355304560,1741061438311,-508.0306592,0.00012697,2]
[355304562,1741061438320,-505.95864361,0.00012697,2]
[355304564,1741061438330,-500.0,0.00012697,2]
[355304566,1741061438340,-500.0,0.00012697,2]
[355304568,1741061438349,-500.0,0.00012697,2]
[355304570,1741061438359,-2413.71,0.00012697,2]
[355304572,1741061438368,-503.39894588,0.00012697,2]
[355304574,1741061438378,-500.0,0.00012697,2]
[355304576,1741061438389,-500.0,0.00012697,2]
[355304594,1741061438564,-509.53444974,0.00012697,2]
[355304596,1741061438574,-928.51,0.00012697,2]
[355304598,1741061438584,-1061.91,0.00012697,2]
[355304600,1741061438594,-509.33101122,0.00012697,2]
[355304602,1741061438604,-1460.66,0.00012697,2]
[355304604,1741061438613,-1373.41,0.00012697,2]
[355304606,1741061438625,-956.43,0.00012697,2]
[355304608,1741061438634,-224.87184256,0.00012697,2]
[355304610,1741061438644,-332.39684494,0.00012697,2]
[355304612,1741061438654,-500.0,0.00012697,2]
[355304614,1741061438663,-518.81447462,0.00012697,2]
[355304616,1741061438673,-500.0,0.00012697,2]
[355304618,1741061438682,-500.0,0.00012697,2]
[355304620,1741061438692,-500.0,0.00012697,2]
[355304622,1741061438702,-508.77082637,0.00012697,2]
[355304624,1741061438711,-505.16394601,0.00012697,2]
[355304626,1741061438720,-500.0,0.00012697,2]
[355304628,1741061438730,-5884.27,0.00012697,2]
[355304630,1741061438740,-500.0,0.00012697,2]
[355304632,1741061438749,-1004.13,0.00012697,2]
[355304634,1741061438759,-812.49,0.00012697,2]
[355304636,1741061438768,-507.83674162,0.00012697,2]
[355304638,1741061438779,-1475.07,0.00012697,2]
[355304640,1741061438789,-506.50896982,0.00012697,2]
[355304642,1741061438798,-601.91629172,0.00012697,2]
[355304644,1741061438807,-2076.65,0.00012697,2]
[355304646,1741061438816,-1831.52,0.00012697,2]
[355304648,1741061438826,-511.47592369,0.00012697,2]
[355304650,1741061438836,-500.0,0.00012697,2]
[355304652,1741061438846,-509.37469037,0.00012697,2]
[355304654,1741061438855,-504.4168439,0.00012697,2]
[355304656,1741061438865,-500.0,0.00012697,2]
[355304658,1741061438874,-500.0,0.00012697,2]
[355304660,1741061438883,-504.9458616,0.00012697,2]
[355304662,1741061438893,-500.0,0.00012697,2]
[355304664,1741061438903,-3335.91,0.00012697,2]
[355304665,1741061438912,-1759.06,0.00012697,2]
[355304667,1741061438921,-1652.23,0.00012697,2]
[355304669,1741061438931,-1415.9,0.00012697,2]
[355304671,1741061438941,-510.11220703,0.00012697,2]
[355304673,1741061438951,-500.0,0.00012697,2]
[355304675,1741061438960,-507.77526933,0.00012697,2]
[355304677,1741061438970,-500.0,0.00012697,2]
[355304679,1741061438980,-518.45896259,0.00012697,2]
[355304681,1741061438990,-2825.43,0.00012697,2]
[355304683,1741061438999,-511.90038797,0.00012697,2]
[355304685,1741061439009,-907.16,0.00012697,2]
[355304687,1741061439019,-500.0,0.00012697,2]
[355304689,1741061439028,-1414.5,0.00012697,2]
[355304691,1741061439037,-516.3851986,0.00012697,2]
[355304693,1741061439047,-500.0,0.00012697,2]
[355304695,1741061439057,-500.0,0.00012697,2]
[355304697,1741061439066,-506.80999246,0.00012697,2]
[355304699,1741061439076,-500.0,0.00012697,2]
[355304701,1741061439086,-2654.59,0.00012697,2]
[355304703,1741061439096,-923.21,0.00012697,2]
[355304705,1741061439106,-631.2,0.00012697,2]
[355304707,1741061439116,-500.0,0.00012697,2]
[355304709,1741061439125,-500.0,0.00012697,2]
[355304711,1741061439134,-500.0,0.00012697,2]
[355304713,1741061439143,-500.0,0.00012697,2]
[355304715,1741061439154,-506.54180556,0.00012697,2]
[355304717,1741061439163,-509.55508755,0.00012697,2]
[355304719,1741061439172,-2017.03,0.00012697,2]
[355304721,1741061439181,-507.26916464,0.00012697,2]
[355304723,1741061439190,-500.0,0.00012697,2]
[355304724,1741061439199,-770.71,0.00012697,2]
[355304727,1741061439209,-515.96781118,0.00012697,2]
[355304729,1741061439219,-506.16776717,0.00012697,2]
[355304730,1741061439229,-510.53525607,0.00012697,2]
[355304732,1741061439239,-1890.11,0.00012697,2]
[355304734,1741061439248,-509.25525915,0.00012697,2]
[355304736,1741061439258,-500.0,0.00012697,2]
[355304738,1741061439268,-500.0,0.00012697,2]
[355304740,1741061439278,-822.11,0.00012697,2]
[355304743,1741061439288,-234.77379711,0.00012697,2]
[355304744,1741061439298,-637.39,0.00012697,2]
[355304746,1741061439307,-506.54337267,0.00012697,2]
[355304748,1741061439316,-500.0,0.00012697,2]
[355304750,1741061439325,-612.6045761,0.00012697,2]
[355304752,1741061439335,-500.0,0.00012697,2]
[355304754,1741061439344,-500.0,0.00012697,2]
[355304756,1741061439354,-3268.59,0.00012697,2]
[355304758,1741061439363,-5211.72,0.00012697,2]
[355304760,1741061439373,-500.0,0.00012697,2]
[355304762,1741061439383,-502.6593007,0.00012697,2]
[355304764,1741061439397,-1065.36,0.00012697,2]
[355304766,1741061439407,-507.65584386,0.00012697,2]
[355304768,1741061439416,-507.23326975,0.00012697,2]
[355304770,1741061439425,-500.0,0.00012697,2]
[355304772,1741061439436,-341.35072833,0.00012697,2]
[355304774,1741061439445,-502.98962474,0.00012697,2]
[355304776,1741061439455,-500.0,0.00012697,2]
[355304778,1741061439465,-375.75835073,0.00012697,2]
[355304780,1741061439476,-500.0,0.00012697,2]
[355304782,1741061439485,-587.58,0.00012697,2]
[355304784,1741061439495,-743.96,0.00012697,2]
[355304786,1741061439505,-854.06,0.00012697,2]
[355304788,1741061439515,-512.44905239,0.00012697,2]
[355304790,1741061439525,-1192.32,0.00012697,2]
[355304792,1741061439535,-510.66509432,0.00012697,2]
[355304794,1741061439545,-500.0,0.00012697,2]
[355304796,1741061439557,-500.0,0.00012697,2]
[355304798,1741061439567,-504.61848074,0.00012697,2]
[355304800,1741061439577,-1581.66,0.00012697,2]
[355304802,1741061439586,-502.36080605,0.00012697,2]
[355304804,1741061439596,-500.0,0.00012697,2]
[355304806,1741061439606,-500.0,0.00012697,2]
[355304808,1741061439616,-508.97699295,0.00012697,2]
[355304810,1741061439626,-506.16588045,0.00012697,2]
[355304812,1741061439636,-500.0,0.00012697,2]
[355304813,1741061439646,-2862.12,0.00012697,2]
[355304814,1741061439660,-505.10355033,0.00012697,2]
[355304815,1741061439670,-505.05369788,0.00012697,2]
[355304816,1741061439680,-527.62,0.00012697,2]
[355304817,1741061439689,-3203.99,0.00012697,2]
[355304818,1741061439698,-502.60621802,0.00012697,2]
[355304820,1741061439708,-749.68,0.00012697,2]
[355304822,1741061439718,-2453.78,0.00012697,2]
[355304824,1741061439727,-500.0,0.00012697,2]
[355304826,1741061439736,-505.62310897,0.00012697,2]
[355304828,1741061439746,-1119.08,0.00012697,2]
[355304830,1741061439756,-506.61052212,0.00012697,2]
[355304832,1741061439766,-1082.69,0.00012697,2]
[355304834,1741061439776,-1888.04,0.00012697,2]
[355304836,1741061439786,-1097.94,0.00012697,2]
[355304838,1741061439796,-500.0,0.00012697,2]
[355304840,1741061439806,-2028.66,0.00012697,2]
[355304842,1741061439816,-500.0,0.00012697,2]
[355304844,1741061439826,-500.0,0.00012697,2]
[355304846,1741061439836,-509.86244197,0.00012697,2]
[355304848,1741061439846,-1021.71,0.00012697,2]
[355304850,1741061439855,-505.31060485,0.00012697,2]
[355304852,1741061439865,-500.0,0.00012697,2]
[355304854,1741061439874,-500.0,0.00012697,2]
[355304856,1741061439884,-544.43,0.00012697,2]
[355304858,1741061439893,-1697.7,0.00012697,2]
[355304860,1741061439906,-500.0,0.00012697,2]
[355304862,1741061439916,-3357.46,0.00012697,2]
[355304864,1741061439926,-500.0,0.00012697,2]
[355304866,1741061439936,-500.0,0.00012697,2]
[355304868,1741061439946,-500.0,0.00012697,2]
[355304870,1741061439956,-500.0,0.00012697,2]
[355304872,1741061439966,-500.0,0.00012697,2]
[355304874,1741061439977,-500.0,0.00012697,2]
[355304876,1741061439987,-500.0,0.00012697,2]
[355304878,1741061439997,-512.75530561,0.00012697,2]
[355304880,1741061440006,-500.0,0.00012697,2]
[355304882,1741061440016,-500.0,0.00012697,2]
[355304884,1741061440025,-500.0,0.00012697,2]
[355304886,1741061440035,-500.0,0.00012697,2]
[355304888,1741061440045,-500.0,0.00012697,2]
[355304890,1741061440054,-500.0,0.00012697,2]
[355304892,1741061440064,-1139.1,0.00012697,2]
[355304894,1741061440074,-364.99584404,0.00012697,2]
[355304896,1741061440083,-500.0,0.00012697,2]
[355304898,1741061440093,-500.0,0.00012697,2]
[355304900,1741061440103,-500.0,0.00012697,2]
[355304902,1741061440112,-991.68,0.00012697,2]
[355304905,1741061440122,-957.82,0.00012697,2]
[355304907,1741061440132,-2414.43,0.00012697,2]
[355304909,1741061440142,-500.0,0.00012697,2]
[355304911,1741061440152,-500.0,0.00012697,2]
[355304912,1741061440162,-500.0,0.00012697,2]
[355304915,1741061440172,-500.0,0.00012697,2]
[355304917,1741061440182,-500.0,0.00012697,2]
[355304919,1741061440192,-1012.19,0.00012697,2]
[355304920,1741061440202,-611.94,0.00012697,2]
[355304922,1741061440212,-500.0,0.00012697,2]
[355304924,1741061440223,-1222.8,0.00012697,2]
[355304926,1741061440234,-500.0,0.00012697,2]
[355304928,1741061440244,-507.06662562,0.00012697,2]
[355304930,1741061440254,-500.0,0.00012697,2]
[355304932,1741061440264,-482.18763435,0.00012697,2]
[355304934,1741061440273,-1296.4,0.00012697,2]
[355304936,1741061440282,-494.85295762,0.00012697,2]
[355304938,1741061440292,-500.0,0.00012697,2]
[355304940,1741061440302,-2241.53,0.00012697,2]
[355304943,1741061440312,-644.43057106,0.00012697,2]
[355304944,1741061440322,-500.0,0.00012697,2]
[355304947,1741061440331,-592.54637254,0.00012697,2]
[355304948,1741061440341,-805.16,0.00012697,2]
[355304950,1741061440350,-500.0,0.00012697,2]
[355304952,1741061440359,-505.34576907,0.00012697,2]
[355304954,1741061440369,-500.0,0.00012697,2]
[355304956,1741061440379,-500.0,0.00012697,2]
[355304958,1741061440389,-500.0,0.00012697,2]
[355304960,1741061440402,-505.84564708,0.00012697,2]
[355304962,1741061440412,-500.0,0.00012697,2]
[355304964,1741061440422,-665.24,0.00012697,2]
[355304966,1741061440431,-1707.4,0.00012697,2]
[355304968,1741061440441,-505.90215395,0.00012697,2]
[355304970,1741061440452,-2107.03,0.00012697,2]
[355304972,1741061440462,-1740.83,0.00012697,2]
[355304974,1741061440472,-500.0,0.00012697,2]
[355304976,1741061440482,-1130.27,0.00012697,2]
[355304978,1741061440491,-1310.25,0.00012697,2]
[355304980,1741061440502,-508.67887034,0.00012697,2]
[355304982,1741061440511,-502.85292557,0.00012697,2]
[355304984,1741061440521,-707.53,0.00012697,2]
[355304986,1741061440531,-1459.1,0.00012697,2]
[355305005,1741061440541,-2057.82,0.00012697,2]
[355305008,1741061440715,-513.19406358,0.00012697,2]
[355305010,1741061440725,-500.0,0.00012697,2]
[355305012,1741061440735,-500.0,0.00012697,2]
[355305014,1741061440744,-508.99617316,0.00012697,2]
[355305016,1741061440754,-619.7,0.00012698,2]
[355305018,1741061440763,-502.54356887,0.00012698,2]
[355305020,1741061440773,-735.97,0.00012698,2]
[355305022,1741061440783,-504.79115951,0.00012698,2]
[355305024,1741061440792,-500.0,0.00012698,2]
[355305027,1741061440802,-507.91463527,0.00012698,2]
[355305029,1741061440811,-523.35534773,0.00012698,2]
[355305030,1741061440821,-513.32762091,0.00012698,2]
[355305032,1741061440830,-505.5722481,0.00012698,2]
[355305034,1741061440839,-502.94295341,0.00012698,2]
[355305036,1741061440848,-500.0,0.00012698,2]
[355305038,1741061440858,-542.32,0.00012698,2]
[355305040,1741061440867,-507.47094271,0.00012698,2]
[355305042,1741061440876,-507.34172081,0.00012698,2]
[355305044,1741061440885,-509.6206617,0.00012698,2]
[355305046,1741061440895,-514.05266172,0.00012698,2]
[355305048,1741061440905,-516.20911924,0.00012698,2]
[355305050,1741061440914,-507.61369958,0.00012698,2]
[355305052,1741061440923,-501.49771445,0.00012698,2]
[355305054,1741061440932,-511.40693438,0.00012698,2]
[355305056,1741061440941,-500.0,0.00012698,2]
[355305058,1741061440951,-918.3,0.00012698,2]
[355305060,1741061440961,-521.58202655,0.00012698,2]
[355305062,1741061440970,-627.18923667,0.00012698,2]
[355305064,1741061440979,-500.0,0.00012698,2]
[355305066,1741061440989,-506.28160583,0.00012698,2]
[355305067,1741061440998,-524.28385345,0.00012698,2]
[355305069,1741061441008,-480.31150164,0.00012698,2]
[355305071,1741061441017,-536.29650909,0.00012698,2]
[355305073,1741061441027,-500.0,0.00012698,2]
[355305075,1741061441036,-573.78,0.00012698,2]
[355305077,1741061441045,-661.31,0.00012698,2]
[355305079,1741061441055,-926.18,0.00012698,2]
[355305081,1741061441064,-500.0,0.00012698,2]
[355305083,1741061441074,-500.0,0.00012698,2]
[355305085,1741061441084,-608.78936479,0.00012698,2]
[355305087,1741061441093,-518.5288148,0.00012698,2]
[355305088,1741061441102,-502.36399907,0.00012698,2]
[355305090,1741061441112,-612.5,0.00012698,2]
[355305092,1741061441121,-540.9906643,0.00012698,2]
[355305094,1741061441131,-503.26500093,0.00012698,2]
[355305096,1741061441140,-500.0,0.00012698,2]
[355305098,1741061441151,-500.0,0.00012698,2]
[355305100,1741061441160,-500.0,0.00012698,2]
[355305102,1741061441169,-656.1,0.00012698,2]
[355305104,1741061441179,-518.4982936,0.00012698,2]
[355305106,1741061441188,-500.0,0.00012698,2]
[355305108,1741061441197,-500.0,0.00012698,2]
[355305110,1741061441206,-500.0,0.00012698,2]
[355305111,1741061441215,-500.0,0.00012698,2]
[355305113,1741061441224,-500.0,0.00012698,2]
[355305115,1741061441234,-503.42167485,0.00012698,2]
[355305117,1741061441244,-500.0,0.00012698,2]
[355305119,1741061441254,-694.75,0.00012698,2]
[355305121,1741061441263,-500.0,0.00012698,2]
[355305123,1741061441272,-500.0,0.00012698,2]
[355305125,1741061441281,-500.0,0.00012698,2]
[355305127,1741061441291,-675.47,0.00012698,2]
[355305129,1741061441300,-930.15,0.00012698,2]
[355305131,1741061441310,-500.0,0.00012698,2]
[355305133,1741061441319,-671.25,0.00012698,2]
[355305135,1741061441329,-800.55,0.00012698,2]
[355305136,1741061441339,-500.0,0.00012698,2]
[355305138,1741061441348,-506.64825265,0.00012698,2]
[355305140,1741061441357,-504.9968899,0.00012698,2]
[355305142,1741061441367,-505.03145981,0.00012698,2]
[355305144,1741061441376,-505.1243642,0.00012698,2]
[355305146,1741061441385,-507.11102598,0.00012698,2]
[355305148,1741061441397,-507.01751125,0.00012698,2]
[355305150,1741061441406,-507.20613137,0.00012698,2]
[355305152,1741061441416,-500.0,0.00012698,2]
[355305153,1741061441425,-1011.18,0.00012698,2]
[355305155,1741061441435,-1043.54,0.00012698,2]
[355305157,1741061441444,-1265.77,0.00012698,2]
[355305159,1741061441453,-500.0,0.00012698,2]
[355305161,1741061441463,-500.0,0.00012698,2]
[355305163,1741061441472,-714.56,0.00012698,2]
[355305165,1741061441481,-500.0,0.00012698,2]
[355305167,1741061441491,-509.84693253,0.00012698,2]
[355305169,1741061441500,-159.677109,0.00012698,2]
[355305170,1741061441510,-970.23,0.00012698,2]
[355305172,1741061441521,-500.0,0.00012698,2]
[355305174,1741061441531,-163.66793092,0.00012698,2]
[355305176,1741061441540,-676.9,0.00012698,2]
[355305178,1741061441550,-787.83,0.00012698,2]
[355305180,1741061441559,-621.16,0.00012698,2]
[355305182,1741061441569,-528.15,0.00012698,2]
[355305184,1741061441579,-1347.79,0.00012698,2]
[355305186,1741061441589,-753.0,0.00012698,2]
[355305189,1741061441606,-500.0,0.00012698,2]
[355305191,1741061441625,-974.13,0.00012698,2]
[355305194,1741061441647,-500.0,0.00012698,2]
[355305197,1741061441667,-685.48,0.00012698,2]
[355305200,1741061441684,-500.0,0.00012698,2]
[355305202,1741061441703,-837.67,0.00012698,2]
[355305205,1741061441724,-500.0,0.00012698,2]
[355305208,1741061441743,-507.80622875,0.00012698,2]
[355305211,1741061441763,-500.0,0.00012698,2]
[355305214,1741061441782,-500.0,0.00012698,2]
[355305217,1741061441801,-631.99,0.00012698,2]
[355305219,1741061441816,-677.75,0.00012698,2]
[355305222,1741061441836,-500.0,0.00012698,2]
[355305224,1741061441851,-1027.91,0.00012698,2]
[355305227,1741061441868,-500.0,0.00012698,2]
[355305229,1741061441884,-582.15463993,0.00012698,2]
[355305232,1741061441900,-500.0,0.00012698,2]
[355305234,1741061441915,-500.0,0.00012698,2]
[355305237,1741061441931,-500.0,0.00012698,2]
[355305239,1741061441947,-500.0,0.00012698,2]
[355305242,1741061441963,-500.0,0.00012698,2]
[355305245,1741061441979,-500.0,0.00012698,2]
[355305247,1741061441995,-528.14,0.00012698,2]
[355305249,1741061442011,-500.0,0.00012698,2]
[355305252,1741061442027,-1094.3,0.00012698,2]
[355305255,1741061442049,-500.0,0.00012698,2]
[355305257,1741061442064,-500.0,0.00012698,2]
[355305259,1741061442081,-921.21,0.00012698,2]
[355305262,1741061442097,-309.79700163,0.00012698,2]
[355305264,1741061442113,-736.91,0.00012698,2]
[355305266,1741061442129,-653.51,0.00012698,2]
[355305269,1741061442145,-811.82,0.00012698,2]
[355305271,1741061442162,-818.73,0.00012698,2]
[355305273,1741061442178,-500.0,0.00012698,2]
[355305276,1741061442194,-500.0,0.00012698,2]
[355305278,1741061442211,-506.04785554,0.00012698,2]